fUSD/lending_fUSD_20251220
["ID","MTS","AMOUNT","RATE_DAILY","PERIOD"]
[399241585,1766199052638,-500.0,0.00016438,2]
[399241586,1766199052649,-500.0,0.00016438,2]
[399241587,1766199052659,-500.0,0.00016438,2]
[399241588,1766199052670,-500.0,0.00016438,2]
[399241589,1766199052680,-12250.74,0.00016438,2]
[399241590,1766199052690,-800.62641417,0.00016438,2]
[399241591,1766199052699,-164.42,0.0001644,2]
[399241592,1766199052708,-164.42,0.0001644,2]
[399241593,1766199052717,-317.99,0.00016447,2]
[399241594,1766199052727,-1009.0,0.000165,2]
[399241595,1766199052736,-3109.34995974,0.00016512,2]
[399241596,1766199052745,-3000.0,0.00016512,2]
[399241597,1766199052754,-500.0,0.00016575,2]
[399241598,1766199052763,-314.0,0.00016578,2]
[399241599,1766199052772,-268.48828964,0.000166,2]
[399241600,1766199052781,-2013.72,0.00016607,2]
[399241601,1766199052789,-217.55,0.0001664,2]
[399241602,1766199052799,-595.37131296,0.0001664,2]
[399241603,1766199052809,-151.0,0.0001664,2]
[399241604,1766199052819,-1075.369,0.0001664,2]
[399241605,1766199052829,-150.0,0.00016647,2]
[399241606,1766199052842,-426.0,0.00016651,2]
[399241607,1766199052851,-12375.00024842,0.0001666,2]
[399241608,1766199052860,-200.0,0.00016709,2]
[399241609,1766199052870,-200.0,0.00016709,2]
[399241610,1766199052880,-500.0,0.00016709,2]
[399241611,1766199052890,-500.0,0.00016712,2]
[399241612,1766199052899,-1118.0,0.00016767,2]
[399241613,1766199052908,-733.0,0.00016767,2]
[399241614,1766199052918,-1600.0,0.00016781,2]
[399241615,1766199052928,-204.96960909,0.00016788,2]
[399241616,1766199052937,-426.0,0.00016797,2]
[399241617,1766199052946,-426.0,0.00016826,2]
[399241618,1766199052955,-426.0,0.00016826,2]
[399241619,1766199052964,-500.0,0.00016847,2]
[399241620,1766199052973,-1000.0,0.00016848,2]
[399241621,1766199052982,-221.90485079,0.00016848,2]
[399241622,1766199052991,-1001.04801864,0.00016848,2]
[399241623,1766199052999,-1000.0,0.00016848,2]
[399241624,1766199053008,-1000.0,0.00016848,2]
[399241625,1766199053017,-1000.0,0.00016848,2]
[399241626,1766199053026,-1001.02020729,0.00016848,2]
[399241627,1766199053036,-1001.01249642,0.00016848,2]
[399241628,1766199053045,-1000.87754816,0.00016848,2]
[399241629,1766199053055,-500.65137842,0.00016848,2]
[399241630,1766199053065,-1001.04078122,0.00016848,2]
[399241631,1766199053074,-1001.0881382,0.00016848,2]
[399241632,1766199053084,-1001.13256122,0.00016848,2]
[399241633,1766199053093,-1001.0574546,0.00016848,2]
[399241634,1766199053103,-1001.31913615,0.00016848,2]
[399241635,1766199053112,-1001.19540644,0.00016848,2]
[399241636,1766199053121,-1002.26047729,0.00016848,2]
[399241637,1766199053130,-179.47316237,0.00016848,2]
[399241638,1766199053140,-1000.0,0.00016848,2]
[399241639,1766199053149,-1000.76703223,0.00016848,2]
[399241640,1766199053159,-1000.91698308,0.00016848,2]
[399241641,1766199053168,-1000.0,0.00016848,2]
[399241642,1766199053178,-1001.39291005,0.00016848,2]
[399241643,1766199053188,-1001.94292641,0.00016848,2]
[399241644,1766199053198,-1000.87355102,0.00016848,2]
[399241645,1766199053209,-1000.0,0.00016848,2]
[399241646,1766199053218,-1000.9465121,0.00016848,2]
[399241647,1766199053228,-1000.96314567,0.00016848,2]
[399241648,1766199053238,-501.11789279,0.00016848,2]
[399241649,1766199053248,-1001.82577211,0.00016848,2]
[399241650,1766199053257,-1001.55316658,0.00016848,2]
[399241651,1766199053267,-1000.0,0.00016848,2]
[399241652,1766199053277,-1004.81720167,0.00016848,2]
[399241653,1766199053286,-1000.0,0.00016848,2]
[399241654,1766199053296,-1000.0,0.00016848,2]
[399241655,1766199053305,-1001.1215833,0.00016848,2]
[399241656,1766199053314,-1000.866265,0.00016848,2]
[399241657,1766199053326,-998.88830841,0.00016848,2]
[399241658,1766199053336,-501.13881872,0.00016848,2]
[399241659,1766199053346,-1000.0,0.00016848,2]
[399241660,1766199053356,-500.0,0.00016849,2]
[399241661,1766199053367,-200.0,0.00016863,2]
[399241662,1766199053377,-200.0,0.00016864,2]
[399241663,1766199053386,-799.0,0.00016871,2]
[399241664,1766199053396,-25000.0,0.00016874,3]
[399241665,1766199053406,-2013.75021306,0.00016881,2]
[399241666,1766199053416,-25000.0,0.00016882,3]
[399241667,1766199053428,-25000.0,0.00016891,3]
[399241668,1766199053438,-510.18,0.00016899,2]
[399241669,1766199053448,-500.0,0.00016899,2]
[399241670,1766199053459,-500.0,0.00016899,2]
[399241671,1766199053468,-500.0,0.00016899,2]
[399241672,1766199053478,-541.48637229,0.00016899,2]
[399241673,1766199053487,-500.0,0.00016899,2]
[399241674,1766199053497,-25000.0,0.000169,3]
[399241675,1766199053507,-268.48828964,0.000169,2]
[399241676,1766199053516,-695.34142668,0.000169,3]
[399241677,1766199053525,-318.11736539,0.000169,2]
[399241678,1766199053535,-1136.86636622,0.000169,2]
[399241679,1766199053546,-821.26193203,0.000169,2]
[399241680,1766199053556,-1014.85378629,0.000169,2]
[399241681,1766199053565,-19173.05476583,0.000169,2]
[399241682,1766199053574,-632.50745291,0.000169,2]
[399241683,1766199053584,-539.9834266,0.000169,2]
[399241684,1766199053593,-500.0,0.000169,2]
[399241685,1766199053602,-500.0,0.000169,2]
[399241686,1766199053611,-500.0,0.000169,2]
[399241687,1766199053620,-500.0,0.000169,2]
[399241688,1766199053629,-500.0,0.000169,2]
[399241689,1766199053638,-500.0,0.000169,2]
[399241690,1766199053647,-500.0,0.000169,2]
[399241691,1766199053656,-500.0,0.000169,2]
[399241692,1766199053665,-500.0,0.000169,2]
[399241693,1766199053674,-500.0,0.000169,2]
[399241694,1766199053684,-500.0,0.000169,2]
[399241695,1766199053693,-500.0,0.000169,2]
[399241696,1766199053702,-500.0,0.000169,2]
[399241697,1766199053712,-500.0,0.000169,2]
[399241698,1766199053721,-500.0,0.000169,2]
[399241699,1766199053731,-500.0,0.000169,2]
[399241700,1766199053742,-165.68557918,0.000169,2]
[399241701,1766199053756,-10052.0,0.000169,2]
[399241702,1766199053768,-426.0,0.00016926,2]
[399241703,1766199053781,-202.0,0.0001694,2]
[399241704,1766199053791,-8626.9,0.00016949,2]
[399241705,1766199053799,-500.0,0.0001695,2]
[399241706,1766199053809,-500.0,0.0001695,2]
[399241707,1766199053819,-150.10981544,0.00016973,2]
[399241708,1766199053828,-163.39899626,0.00016973,2]
[399241709,1766199053837,-150.09235231,0.00016973,2]
[399241710,1766199053847,-500.0,0.00016973,2]
[399241711,1766199053857,-150.0,0.00016973,2]
[399241712,1766199053867,-500.0,0.00016986,2]
[399241713,1766199053876,-510.18,0.00016986,2]
[399241714,1766199053885,-164.76564826,0.00016986,2]
[399241715,1766199053895,-426.0,0.0001699,2]
[399241716,1766199053905,-868.13960377,0.0001699,2]
[399241717,1766199053914,-868.13960377,0.0001699,2]
[399241718,1766199053925,-151.0,0.00016997,2]
[399241719,1766199053934,-1500.0,0.00016998,2]
[399241720,1766199053944,-1500.0,0.00016998,2]
[399241721,1766199053954,-1527.47643038,0.00016998,2]
[399241722,1766199053964,-1019.77444314,0.00016999,5]
[399241723,1766199053973,-1019.77444314,0.00016999,5]
[399241724,1766199053983,-1019.77444314,0.00016999,5]
[399241725,1766199053992,-1019.77444314,0.00016999,5]
[399241726,1766199054001,-1019.77444314,0.00016999,5]
[399241727,1766199054010,-1019.77444313,0.00016999,5]
[399241728,1766199054019,-510.18,0.00016999,2]
[399241729,1766199054029,-510.18,0.00016999,2]
[399241730,1766199054038,-510.18,0.00016999,2]
[399241731,1766199054047,-510.18,0.00016999,2]
[399241732,1766199054056,-510.18,0.00016999,2]
[399241733,1766199054065,-510.18,0.00016999,2]
[399241734,1766199054075,-510.18,0.00016999,2]
[399241735,1766199054084,-510.18,0.00016999,2]
[399241736,1766199054094,-510.18,0.00016999,2]
[399241737,1766199054103,-510.18,0.00016999,2]
[399241738,1766199054114,-510.18,0.00016999,2]
[399241739,1766199054123,-510.18,0.00016999,2]
[399241740,1766199054132,-510.35443283,0.00016999,2]
[399241741,1766199054142,-500.0,0.00016999,2]
[399241742,1766199054151,-500.0,0.00016999,2]
[399241743,1766199054160,-500.0,0.00016999,2]
[399241744,1766199054170,-500.0,0.00016999,2]
[399241745,1766199054179,-500.0,0.00016999,2]
[399241746,1766199054189,-500.0,0.00016999,2]
[399241747,1766199054199,-260.01917159,0.00016999,2]
[399241748,1766199054209,-500.0,0.00016999,2]
[399241749,1766199054218,-500.0,0.00016999,2]
[399241750,1766199054228,-500.0,0.00016999,2]
[399241751,1766199054237,-500.0,0.00016999,2]
[399241752,1766199054247,-469.51043734,0.00016999,2]
[399241753,1766199054256,-500.0,0.00016999,2]
[399241754,1766199054266,-500.0,0.00016999,2]
[399241755,1766199054276,-500.0,0.00016999,2]
[399241756,1766199054285,-500.0,0.00016999,2]
[399241757,1766199054295,-500.0,0.00016999,2]
[399241758,1766199054419,-500.0,0.00016999,2]
[399241759,1766199054433,-352.29799785,0.00016999,2]
[399241760,1766199054443,-517.41741792,0.00016999,2]
[399241761,1766199054453,-500.0,0.00016999,2]
[399241762,1766199054462,-500.0,0.00016999,2]
[399241763,1766199054472,-500.0,0.00016999,2]
[399241764,1766199054482,-500.0,0.00016999,2]
[399241765,1766199054491,-500.0,0.00016999,2]
[399241766,1766199054502,-500.0,0.00016999,2]
[399241767,1766199054511,-500.0,0.00016999,2]
[399241768,1766199054520,-500.0,0.00016999,2]
[399241769,1766199054530,-500.0,0.00016999,2]
[399241770,1766199054539,-511.45159126,0.00016999,2]
[399241771,1766199054549,-500.0,0.00016999,2]
[399241772,1766199054558,-500.0,0.00016999,2]
[399241773,1766199054567,-500.0,0.00016999,2]
[399241774,1766199054576,-500.0,0.00016999,2]
[399241775,1766199054585,-500.0,0.00016999,2]
[399241776,1766199054595,-500.0,0.00016999,2]
[399241777,1766199054605,-500.0,0.00016999,2]
[399241778,1766199054614,-500.0,0.00016999,2]
[399241779,1766199054625,-500.0,0.00016999,2]
[399241780,1766199054634,-500.0,0.00016999,2]
[399241781,1766199054644,-500.0,0.00016999,2]
[399241782,1766199054654,-500.0,0.00016999,2]
[399241783,1766199054664,-500.0,0.00016999,2]
[399241784,1766199054674,-500.0,0.00016999,2]
[399241785,1766199054685,-537.03290161,0.00016999,2]
[399241786,1766199054696,-308.45911544,0.00016999,2]
[399241787,1766199054707,-500.0,0.00016999,2]
[399241788,1766199054716,-500.0,0.00016999,2]
[399241789,1766199054725,-500.0,0.00016999,2]
[399241790,1766199054734,-500.0,0.00016999,2]
[399241791,1766199054743,-500.0,0.00016999,2]
[399241792,1766199054753,-500.0,0.00016999,2]
[399241793,1766199054764,-500.0,0.00016999,2]
[399241794,1766199054776,-500.0,0.00016999,2]
[399241795,1766199054786,-500.0,0.00016999,2]
[399241796,1766199054795,-500.0,0.00016999,2]
[399241797,1766199054805,-592.36853989,0.00016999,2]
[399241798,1766199054818,-2688495.85773551,0.00017,2]
[399241799,1766199054827,-1187143.54781949,0.00017,2]
[399241800,1766199054837,-250.0,0.00017,2]
[399241801,1766199054846,-3238288.3089442,0.00017,2]
[399241802,1766199054937,-489.64607935,0.000159,2]
[399241803,1766199054948,-102.62382867,0.000159,2]
[399241804,1766199054957,-382.68117133,0.00017,2]
[399241805,1766199054969,-84062.57743254,0.00017,2]
[399241806,1766199054999,-197.0,0.00011859,2]
[399241807,1766199055009,-539.43301719,0.00017,2]
[399241808,1766199055216,-22919.88902091,0.0001268,2]
[399241809,1766199055226,-215.0,0.00013738,2]
[399241810,1766199055237,-211.0,0.00013766,2]
[399241811,1766199055246,-256276.41792704,0.00017,2]
[399241815,1766199059510,500.0,0.00011558,2]
[399241816,1766199059926,500.0,0.00011558,2]
[399241817,1766199060272,500.0,0.00011558,2]
[399241818,1766199061596,500.0,0.00011558,2]
[399241819,1766199061638,500.0,0.00011558,2]
[399241820,1766199061687,500.0,0.00011558,2]
[399241821,1766199061749,500.0,0.00011558,2]
[399241822,1766199061823,500.0,0.00011558,2]
[399241823,1766199061890,500.0,0.00011558,2]
[399241824,1766199061936,643.41634564,0.00011558,2]
[399241825,1766199061986,500.0,0.00011558,2]
[399241826,1766199062054,500.0,0.00011558,2]
[399241827,1766199062114,500.0,0.00011558,2]
[399241828,1766199062165,500.0,0.00011558,2]
[399241829,1766199062223,500.0,0.00011558,2]
[399241830,1766199062269,500.0,0.00011558,2]
[399241831,1766199062331,500.0,0.00011558,2]
[399241832,1766199062371,500.0,0.00011558,2]
[399241833,1766199062417,500.0,0.00011558,2]
[399241834,1766199062462,356.59365436,0.00011558,2]
[399241839,1766199068819,347.5592,0.00011459,2]
[399241841,1766199074915,3415.34939542,0.00011459,2]
[399241842,1766199074938,3940.09680458,0.00011459,2]
[399241849,1766199091055,914.28118483,0.00011459,2]
[399241850,1766199091083,4854.37798941,0.00011459,2]
[399241851,1766199091114,4854.37798941,0.00011459,2]
[399241852,1766199091138,4854.37798941,0.00011459,2]
[399241853,1766199091163,4854.37798941,0.00011459,2]
[399241854,1766199091186,4854.37798941,0.00011459,2]
[399241855,1766199091210,4854.37798941,0.00011459,2]
[399241859,1766199101388,-154.44490781,0.00011458,2]
[399241860,1766199121490,300.0,0.00011458,2]
[399241879,1766199149948,238.41499956,0.00013178,7]
[399241881,1766199158314,316.0025312,0.00011359,2]
[399241885,1766199181340,300.0,0.00011458,2]
[399241886,1766199184768,1200.0,0.00011458,2]
[399241892,1766199202922,1136.86636625,0.00011359,2]
[399241905,1766199206564,500.0,0.00011458,2]
[399241907,1766199206607,500.0,0.00011458,2]
[399241908,1766199206664,500.0,0.00011458,2]
[399241909,1766199206703,303.08407655,0.00011458,2]
[399241910,1766199206740,500.0,0.00011458,2]
[399241911,1766199206782,500.0,0.00011458,2]
[399241912,1766199206826,500.0,0.00011458,2]
[399241913,1766199206864,500.0,0.00011458,2]
[399241914,1766199206901,500.0,0.00011458,2]
[399241915,1766199206938,500.0,0.00011458,2]
[399241916,1766199206980,500.0,0.00011458,2]
[399241918,1766199207019,500.0,0.00011458,2]
[399241920,1766199207055,317.66880638,0.00011458,2]
[399241921,1766199207091,317.498404,0.00011458,2]
[399241922,1766199207113,133.04112552,0.00011458,2]
[399241923,1766199207152,217.72413288,0.00011458,2]
[399241924,1766199207190,500.0,0.00011458,2]
[399241925,1766199207231,500.0,0.00011458,2]
[399241926,1766199207268,500.0,0.00011458,2]
[399241927,1766199207309,500.0,0.00011458,2]
[399241928,1766199207356,500.0,0.00011458,2]
[399241929,1766199207391,500.0,0.00011458,2]
[399241930,1766199207426,500.0,0.00011458,2]
[399241931,1766199207464,500.0,0.00011458,2]
[399241932,1766199207500,500.0,0.00011458,2]
[399241933,1766199207553,500.0,0.00011458,2]
[399241934,1766199207602,500.0,0.00011458,2]
[399241935,1766199207638,500.0,0.00011458,2]
[399241936,1766199207676,500.0,0.00011458,2]
[399241937,1766199207715,500.0,0.00011458,2]
[399241938,1766199207770,500.0,0.00011458,2]
[399241939,1766199207805,500.0,0.00011458,2]
[399241940,1766199207840,500.0,0.00011458,2]
[399241941,1766199207876,271.08954225,0.00011458,2]
[399241942,1766199207916,500.0,0.00011458,2]
[399241943,1766199207952,378.15519935,0.00011458,2]
[399242132,1766199523976,353.0385894,0.00022,30]
[399242139,1766199557884,999.0,0.00010959,3]
[399242191,1766199667015,10000.01,0.00010719,2]
[399242195,1766199698857,712.104928,0.00010657,2]
[399242243,1766199903143,-288.077855,7.945e-05,2]
[399242244,1766199903171,-250.0,8.342e-05,2]
[399242245,1766199903198,-193.0,8.74e-05,2]
[399242246,1766199903542,-250.0,8.74e-05,2]
[399242247,1766199903572,-250.0,9.598e-05,2]
[399242248,1766199903600,-153.59692508,0.0001,2]
[399242249,1766199903628,-376.61,0.00010074,2]
[399242250,1766199903656,-605.09348431,0.00010619,2]
[399242251,1766199903684,-376.61,0.00010634,2]
[399242252,1766199903713,-304.0,0.0001065,2]
[399242253,1766199903741,-895.63059252,0.00010688,2]
[399242254,1766199903770,-300.0,0.00010709,2]
[399242255,1766199903799,-314.77228618,0.00010709,2]
[399242264,1766199917739,-885.22771382,0.00010709,2]
[399242265,1766199917767,-150.0,0.0001071,2]
[399242266,1766199917794,-300.0,0.0001071,2]
[399242267,1766199917822,-1200.0,0.0001071,2]
[399242268,1766199917856,-246.05,0.00010711,2]
[399242332,1766200042901,9958.73992617,0.00012893,3]
[399242333,1766200042926,15041.26007383,0.00012893,3]
[399242337,1766200062294,25000.0,0.00012884,3]
[399242349,1766200081740,25000.0,0.00012875,3]
[399242358,1766200135302,-200.0,0.00010158,2]
[399242362,1766200141975,-300.0,0.0001061,2]
[399242365,1766200144138,-150.0,0.0001061,2]
[399242373,1766200157709,-741.88969207,0.00010611,2]
[399242374,1766200164188,-305.64713887,0.0001061,2]
[399242375,1766200164215,-556.99125488,0.0001061,2]
[399242376,1766200164244,-500.0,0.0001061,2]
[399242377,1766200164272,-500.0,0.0001061,2]
[399242378,1766200164300,-310.11377912,0.0001061,2]
[399242379,1766200164327,-500.0,0.0001061,2]
[399242380,1766200164358,-500.0,0.0001061,2]
[399242381,1766200164385,-259.01815366,0.0001061,2]
[399242382,1766200164414,-500.0,0.0001061,2]
[399242383,1766200164445,-500.0,0.0001061,2]
[399242384,1766200164472,-500.0,0.0001061,2]
[399242385,1766200165071,-136.46934694,0.0001061,2]
[399242398,1766200213469,-3655.751653,0.00010186,2]
[399242416,1766200231680,-1010.2,0.00010238,2]
[399242417,1766200231733,-312.0,0.00010238,2]
[399242418,1766200231744,-522.75,0.00010238,2]
[399242419,1766200231754,-250.0,0.00010238,2]
[399242420,1766200231763,-234.0,0.00010238,2]
[399242421,1766200231773,-264.35832401,0.00010441,2]
[399242422,1766200231782,-1048.67476671,0.000105,2]
[399242423,1766200231791,-1668.46081832,0.00010511,2]
[399242424,1766200231800,-300.0,0.00010609,2]
[399242425,1766200231809,-20.57706584,0.00010609,2]
[399242426,1766200231820,-1179.42293416,0.00010609,2]
[399242428,1766200231830,-150.29992787,0.0001061,2]
[399242429,1766200231840,-500.0,0.0001061,2]
[399242430,1766200231849,-500.0,0.0001061,2]
[399242431,1766200231858,-500.0,0.0001061,2]
[399242432,1766200231867,-500.0,0.0001061,2]
[399242433,1766200231877,-500.0,0.0001061,2]
[399242434,1766200231886,-500.0,0.0001061,2]
[399242435,1766200231896,-33486.27082477,0.00010611,2]
[399242436,1766200231908,-1254.41808677,0.00010611,2]
[399242437,1766200231920,-938.58626969,0.00010611,2]
[399242438,1766200231944,-709.0,0.00010611,2]
[399242439,1766200231958,-1850.0,0.00010611,2]
[399242446,1766200237844,-11919.67305348,0.00010611,2]
[399242447,1766200237951,-1364.2629872,0.00010611,2]
[399242448,1766200238006,-947735.89908602,0.00010611,2]
[399242449,1766200238015,-403.39565622,0.00010611,2]
[399242450,1766200238024,-403.3956562,0.00010614,2]
[399242451,1766200238034,-403.3956562,0.00010617,2]
[399242452,1766200238043,-1200.0,0.0001071,2]
[399242453,1766200238052,-27680.72,0.00010711,2]
[399242454,1766200238061,-153.59692508,0.00010711,2]
[399242455,1766200238070,-153.59692508,0.00010711,2]
[399242456,1766200238079,-2456.62,0.00010718,2]
[399242457,1766200238088,-12143.53,0.00010719,2]
[399242458,1766200238098,-1367.09,0.00010752,2]
[399242460,1766200238107,-158.99,0.00010844,2]
[399242461,1766200238116,-457.0,0.00010976,2]
[399242462,1766200238125,-2456.62,0.00010992,2]
[399242463,1766200238134,-477.0,0.00010998,2]
[399242464,1766200238143,-185.0,0.00011013,2]
[399242465,1766200238152,-1177.0,0.00011035,2]
[399242466,1766200238162,-1342.0,0.00011057,2]
[399242468,1766200238171,-1581.0,0.00011079,2]
[399242470,1766200238180,-29335.96649673,0.00011099,2]
[399242472,1766200238190,-500.0,0.00011146,2]
[399242474,1766200238198,-201.77626679,0.00011146,2]
[399242476,1766200238208,-25305.2771,0.00011155,2]
[399242478,1766200238218,-2483.8118,0.00011155,2]
[399242480,1766200238227,-376.61,0.00011193,2]
[399242482,1766200238237,-29335.96649672,0.00011221,2]
[399242484,1766200238246,-2500.0,0.00011259,2]
[399242486,1766200238255,-250.0,0.00011262,2]
[399242488,1766200238264,-195.0,0.00011262,2]
[399242490,1766200238273,-2456.62,0.00011266,2]
[399242492,1766200238284,-316.0,0.00011278,2]
[399242494,1766200238295,-478.0,0.000113,2]
[399242496,1766200238304,-440.0,0.00011323,2]
[399242498,1766200238313,-150.0,0.00011345,2]
[399242500,1766200238322,-1301.4542398,0.00011347,2]
[399242502,1766200238331,-500.0,0.0001135,2]
[399242504,1766200238341,-200.0,0.0001135,2]
[399242506,1766200238350,-500.0,0.0001135,2]
[399242508,1766200238359,-500.0,0.0001135,2]
[399242510,1766200238368,-500.0,0.0001135,2]
[399242512,1766200238377,-500.0,0.0001135,2]
[399242514,1766200238386,-500.0,0.0001135,2]
[399242516,1766200238396,-500.0,0.0001135,2]
[399242518,1766200238405,-500.0,0.0001135,2]
[399242520,1766200238415,-500.0,0.0001135,2]
[399242522,1766200238425,-200.0,0.0001135,2]
[399242524,1766200238434,-500.0,0.0001135,2]
[399242526,1766200238444,-175.64781923,0.0001135,2]
[399242528,1766200238453,-500.0,0.0001135,2]
[399242530,1766200238462,-500.0,0.0001135,2]
[399242532,1766200238472,-500.0,0.0001135,2]
[399242534,1766200238481,-500.0,0.0001135,2]
[399242536,1766200238490,-500.0,0.0001135,2]
[399242538,1766200238500,-500.0,0.0001135,2]
[399242540,1766200238508,-500.0,0.0001135,2]
[399242542,1766200238518,-500.0,0.0001135,2]
[399242544,1766200238527,-500.0,0.0001135,2]
[399242546,1766200238536,-151.0,0.0001135,2]
[399242548,1766200238546,-500.0,0.0001135,2]
[399242550,1766200238555,-151.0,0.0001135,2]
[399242552,1766200238564,-500.0,0.0001135,2]
[399242554,1766200238573,-151.0,0.0001135,2]
[399242556,1766200238582,-500.0,0.0001135,2]
[399242558,1766200238591,-151.0,0.0001135,2]
[399242560,1766200238600,-500.0,0.0001135,2]
[399242562,1766200238609,-151.0,0.0001135,2]
[399242564,1766200238618,-151.0,0.0001135,2]
[399242566,1766200238627,-151.0,0.0001135,2]
[399242568,1766200238637,-151.0,0.0001135,2]
[399242570,1766200238645,-151.0,0.0001135,2]
[399242572,1766200238655,-200.0,0.0001135,2]
[399242574,1766200238664,-151.0,0.0001135,2]
[399242576,1766200238675,-151.0,0.0001135,2]
[399242578,1766200238685,-151.0,0.0001135,2]
[399242580,1766200238694,-151.0,0.0001135,2]
[399242582,1766200238703,-151.0,0.0001135,2]
[399242583,1766200238712,-151.0,0.0001135,2]
[399242584,1766200238721,-151.0,0.0001135,2]
[399242585,1766200238730,-151.0,0.0001135,2]
[399242586,1766200238740,-151.0,0.0001135,2]
[399242587,1766200238749,-151.0,0.0001135,2]
[399242588,1766200238758,-151.0,0.0001135,2]
[399242589,1766200238767,-151.0,0.0001135,2]
[399242590,1766200238777,-174.17489767,0.0001135,2]
[399242592,1766200238787,-151.0,0.0001135,2]
[399242594,1766200238796,-151.0,0.0001135,2]
[399242596,1766200238805,-151.0,0.0001135,2]
[399242598,1766200238814,-151.0,0.0001135,2]
[399242600,1766200238823,-151.0,0.0001135,2]
[399242602,1766200238832,-151.0,0.0001135,2]
[399242604,1766200238841,-151.0,0.0001135,2]
[399242606,1766200238850,-151.0,0.0001135,2]
[399242608,1766200238859,-151.0,0.0001135,2]
[399242610,1766200238868,-151.0,0.0001135,2]
[399242612,1766200238878,-500.0,0.0001135,2]
[399242614,1766200238887,-275.47469505,0.0001135,2]
[399242616,1766200238896,-27591.04624507,0.00011356,2]
[399242618,1766200238906,-197.64230935,0.00011357,2]
[399242620,1766200238915,-6435.382,0.00011357,2]
[399242622,1766200238924,-351.184,0.00011357,2]
[399242624,1766200238933,-2756.9178,0.00011359,2]
[399242626,1766200238942,-426.29126304,0.00011359,2]
[399242628,1766200238951,-475.0,0.00011368,2]
[399242629,1766200238960,-355.0,0.0001139,2]
[399242632,1766200238970,-247.0,0.00011413,2]
[399242634,1766200238979,-438.0,0.00011435,2]
[399242636,1766200238990,-155.0,0.00011458,2]
[399242638,1766200239000,-219.88284936,0.00011458,2]
[399242639,1766200239009,-1000.0,0.00011459,2]
[399242642,1766200239019,-441.2294,0.00011459,2]
[399242644,1766200239029,-33486.8341,0.00011459,2]
[399242646,1766200239039,-1668.4608183,0.00011504,2]
[399242648,1766200239049,-3240.0,0.00011507,2]
[399242650,1766200239058,-750.0,0.00011528,2]
[399242651,1766200239068,-2456.62,0.0001154,2]
[399242653,1766200239077,-1417.0,0.00011551,2]
[399242656,1766200239087,-1002.15082385,0.00011558,2]
[399242658,1766200239096,-1000.0,0.00011558,2]
[399242659,1766200239104,-364.97921706,0.00011558,2]
[399242661,1766200239113,-1429.0,0.00011574,2]
[399242664,1766200239122,-151.0,0.00011594,2]
[399242665,1766200239131,-1984.0,0.00011597,2]
[399242667,1766200239141,-232.0,0.0001162,2]
[399242670,1766200239151,-500.0,0.00011624,2]
[399242672,1766200239160,-255.0,0.00011639,2]
[399242674,1766200239170,-811.0,0.00011643,2]
[399242676,1766200239179,-420.0,0.00011663,2]
[399242678,1766200239188,-682.0,0.00011666,2]
[399242680,1766200239198,-1680.0,0.0001167,2]
[399242681,1766200239207,-195.0,0.00011672,2]
[399242684,1766200239216,-195.0,0.00011672,2]
[399242686,1766200239226,-7237.24177194,0.00011708,2]